fUSD/lending_fUSD_20260516
["ID","MTS","AMOUNT","RATE_DAILY","PERIOD"]
[422390115,1778919617000,-10171.0,0.00044,30]
[422390116,1778919617000,-18555.0,0.00044,120]
[422390117,1778919617000,-160.0,0.00044,68]
[422390118,1778919617000,-100000.0,0.00044,30]
[422390124,1778919617000,-210.0,0.0004405,120]
[422390125,1778919617000,-557.0,0.0004405,120]
[422390122,1778919617000,-213.36350281,0.00044031,120]
[422390126,1778919617000,-5246.0,0.0004405,120]
[422390121,1778919617000,-571.588399,0.00044,57]
[422390120,1778919617000,-228.64673731,0.00044,120]
[422390119,1778919617000,-215.23390534,0.00044,120]
[422390123,1778919617000,-567.0,0.00044033,120]
[422390133,1778919618000,-530.0,0.0004405,120]
[422390127,1778919618000,-5501.0,0.0004405,120]
[422390128,1778919618000,-888.0,0.0004405,120]
[422390130,1778919618000,-2311.0,0.0004405,120]
[422390129,1778919618000,-989.0,0.0004405,120]
[422390132,1778919618000,-953.0,0.0004405,120]
[422390131,1778919618000,-1185.0,0.0004405,120]
[422390134,1778919618000,-1821.0,0.00044058,120]
[422390136,1778919618000,-2500.0,0.000441,120]
[422390135,1778919618000,-340.0,0.00044058,120]
[422390146,1778919618000,-2335.0,0.00044361,120]
[422390145,1778919618000,-713.29,0.00044361,120]
[422390143,1778919618000,-211.0,0.000443,120]
[422390144,1778919618000,-618.28,0.00044361,120]
[422390141,1778919618000,-884.47,0.000443,120]
[422390137,1778919618000,-490.97,0.00044161,30]
[422390140,1778919618000,-152.0,0.000442,120]
[422390139,1778919618000,-335.466099,0.000442,69]
[422390138,1778919618000,-278.56561452,0.00044164,120]
[422390142,1778919618000,-884.47,0.000443,120]
[422390156,1778919619000,-1000.0,0.00044521,30]
[422390148,1778919619000,-490.97,0.00044401,30]
[422390147,1778919619000,-2500.0,0.000444,120]
[422390150,1778919619000,-1973.72093801,0.0004444,120]
[422390149,1778919619000,-273.95,0.0004443,120]
[422390152,1778919619000,-1500.0,0.000445,120]
[422390151,1778919619000,-2133.10935136,0.000445,120]
[422390154,1778919619000,-80000.0,0.000445,100]
[422390153,1778919619000,-10000.0,0.000445,120]
[422390158,1778919619000,-2335.0,0.00044635,120]
[422390160,1778919619000,-2500.0,0.000447,120]
[422390157,1778919619000,-4000.0,0.00044576,120]
[422390159,1778919619000,-490.97,0.00044641,30]
[422390161,1778919619000,-211.0,0.000447,120]
[422390163,1778919619000,-15390.05,0.000447,120]
[422390162,1778919619000,-15390.055,0.000447,120]
[422390165,1778919619000,-4319.22357873,0.000448,120]
[422390164,1778919619000,-12000.0,0.0004473,120]
[422390167,1778919619000,-1065.97595432,0.000448,120]
[422390166,1778919619000,-50000.0,0.000448,33]
[422390155,1778919619000,-50000.0,0.000445,33]
[422390173,1778919620000,-70000.00000004,0.000449,110]
[422390174,1778919620000,-39999.99999968,0.000449,120]
[422390172,1778919620000,-413.9200888,0.0004489,120]
[422390175,1778919620000,-151.8,0.000449,120]
[422390170,1778919620000,-156.0,0.00044838,120]
[422390168,1778919620000,-300.0,0.00044838,120]
[422390169,1778919620000,-300.0,0.00044838,120]
[422390171,1778919620000,-490.97,0.00044881,30]
[422390176,1778919620000,-2335.0,0.00044909,120]
[422390184,1778919620000,-50000.0,0.00044997,120]
[422390178,1778919620000,-50000.0,0.00044997,120]
[422390186,1778919620000,-50000.0,0.00044997,120]
[422390187,1778919620000,-50000.0,0.00044997,120]
[422390185,1778919620000,-50000.0,0.00044997,120]
[422390182,1778919620000,-1906.57076794,0.00044997,120]
[422390177,1778919620000,-273.95,0.0004491,120]
[422390180,1778919620000,-50000.0,0.00044997,120]
[422390181,1778919620000,-50000.0,0.00044997,120]
[422390179,1778919620000,-50000.0,0.00044997,120]
[422390183,1778919620000,-1871.61902277,0.00044997,120]
[422390196,1778919621000,-785.8416391,0.00045,120]
[422390188,1778919621000,-50000.0,0.00044997,120]
[422390189,1778919621000,-50000.0,0.00044997,120]
[422390190,1778919621000,-50000.0,0.00044997,120]
[422390191,1778919621000,-49878.0,0.00044997,120]
[422390192,1778919621000,-1000.0,0.00044999,120]
[422390194,1778919621000,-150.0,0.00045,120]
[422390193,1778919621000,-2500.0,0.00045,120]
[422390195,1778919621000,-50000.0,0.00045,31]
[422390198,1778919621000,-207308.76808066,0.00045,120]
[422390208,1778919621000,-4704.4812,0.00045,120]
[422390200,1778919621000,-439647.39695892,0.00045,120]
[422390199,1778919621000,-1000.0,0.00045,120]
[422390202,1778919621000,-50000.0,0.00045,60]
[422390201,1778919621000,-3000.0,0.00045,120]
[422390203,1778919621000,-44678.99273159,0.00045,120]
[422390204,1778919621000,-120128.0,0.00045,60]
[422390206,1778919621000,-48700.0,0.00045,60]
[422390205,1778919621000,-3012.09381982,0.00045,120]
[422390207,1778919621000,-10000.0,0.00045,120]
[422390197,1778919621000,-50000.0,0.00045,120]
[422390216,1778919622000,-44282.44,0.00045,120]
[422390214,1778919622000,-590.59900365,0.00045,120]
[422390215,1778919622000,-10463.57828581,0.00045,120]
[422390213,1778919622000,-100000.0,0.00045,30]
[422390217,1778919622000,-429.23364012,0.00045,120]
[422390210,1778919622000,-163.96550284,0.00045,120]
[422390211,1778919622000,-199970.34764882,0.00045,30]
[422390209,1778919622000,-22201.80337792,0.00045,30]
[422390212,1778919622000,-100000.0,0.00045,30]
[422390219,1778919622000,-688.35830617,0.00045,30]
[422390229,1778919622000,-20789.66453519,0.00045,30]
[422390221,1778919622000,-801.50566816,0.00045,80]
[422390218,1778919622000,-1206.44449101,0.00045,120]
[422390227,1778919622000,-238.42903206,0.00045,120]
[422390228,1778919622000,-921.63759613,0.00045,120]
[422390226,1778919622000,-180.59246129,0.00045,120]
[422390230,1778919622000,-5772.05078685,0.00045,120]
[422390224,1778919622000,-1000.0,0.00045,120]
[422390222,1778919622000,-600.65590348,0.00045,30]
[422390223,1778919622000,-3283.76870803,0.00045,120]
[422390220,1778919622000,-542.23975633,0.00045,30]
[422390225,1778919622000,-150.49779825,0.00045,30]
[422390231,1778919623000,-1054.02258423,0.00045,120]
[422390232,1778919623000,-2720.99243673,0.00045,120]
[422390233,1778919623000,-500.0,0.00045,120]
[422390234,1778919623000,-61663.40897474,0.00045,120]
[422390238,1778919623000,-239.0,0.00045,120]
[422390235,1778919623000,-1279.97,0.00045,120]
[422390236,1778919623000,-15000.0,0.00045,60]
[422390237,1778919623000,-160.0,0.00045,73]
[422390239,1778919623000,-163.8,0.00045,85]
[422390247,1778919623000,-16376.65587169,0.00045,120]
[422390242,1778919623000,-1740.83416483,0.00045,120]
[422390250,1778919623000,-567.0,0.00045033,120]
[422390249,1778919623000,-47233.37634811,0.00045,30]
[422390248,1778919623000,-8620.0,0.00045,120]
[422390245,1778919623000,-1014.93610192,0.00045,120]
[422390240,1778919623000,-152.0,0.00045,120]
[422390243,1778919623000,-218.44626753,0.00045,120]
[422390244,1778919623000,-220.84519322,0.00045,120]
[422390241,1778919623000,-2410.14058138,0.00045,30]
[422390246,1778919623000,-444.0,0.00045,120]
[422390259,1778919624000,-1185.0,0.0004505,120]
[422390253,1778919624000,-557.0,0.0004505,120]
[422390252,1778919624000,-210.0,0.0004505,120]
[422390255,1778919624000,-5501.0,0.0004505,120]
[422390254,1778919624000,-5246.0,0.0004505,120]
[422390256,1778919624000,-888.0,0.0004505,120]
[422390257,1778919624000,-989.0,0.0004505,120]
[422390258,1778919624000,-2311.0,0.0004505,120]
[422390260,1778919624000,-953.0,0.0004505,120]
[422390261,1778919624000,-530.0,0.0004505,120]
[422390251,1778919624000,-443.450492,0.00045049,120]
[422390263,1778919624000,-340.0,0.00045058,120]
[422390272,1778919624000,-887.25,0.00045205,120]
[422390271,1778919624000,-463.54,0.00045205,120]
[422390269,1778919624000,-2335.0,0.00045183,120]
[422390270,1778919624000,-169.744863,0.000452,74]
[422390262,1778919624000,-1821.0,0.00045058,120]
[422390267,1778919624000,-213.03663921,0.00045168,40]
[422390266,1778919624000,-490.97,0.00045121,30]
[422390265,1778919624000,-211.0,0.000451,120]
[422390264,1778919624000,-161.44383784,0.000451,120]
[422390268,1778919624000,-1442.8497898,0.0004517,61]
[422390282,1778919625000,-423.26,0.00045205,120]
[422390275,1778919625000,-739.13,0.00045205,120]
[422390274,1778919625000,-518.33,0.00045205,120]
[422390276,1778919625000,-584.8,0.00045205,120]
[422390277,1778919625000,-387.05,0.00045205,120]
[422390278,1778919625000,-556.59,0.00045205,120]
[422390279,1778919625000,-409.91,0.00045205,120]
[422390281,1778919625000,-729.76,0.00045205,120]
[422390280,1778919625000,-741.73,0.00045205,120]
[422390273,1778919625000,-459.88,0.00045205,120]
[422390283,1778919625000,-507.37,0.00045205,120]
[422390285,1778919625000,-167.36,0.00045205,120]
[422390286,1778919625000,-1000.0,0.00045205,30]
[422390287,1778919625000,-663.65,0.00045205,30]
[422390288,1778919625000,-203.0,0.00045205,30]
[422390290,1778919625000,-350.0,0.00045205,30]
[422390289,1778919625000,-350.0,0.00045205,30]
[422390291,1778919625000,-234.0,0.00045205,30]
[422390292,1778919625000,-150.0,0.00045205,30]
[422390293,1778919625000,-158.0,0.00045205,30]
[422390284,1778919625000,-454.27,0.00045205,30]
[422390301,1778919626000,-765.0,0.00045363,120]
[422390300,1778919626000,-490.99159443,0.00045361,30]
[422390299,1778919626000,-50000.0,0.000453,30]
[422390294,1778919626000,-350.0,0.00045205,30]
[422390297,1778919626000,-8282.0843406,0.00045297,120]
[422390296,1778919626000,-247.0,0.00045205,30]
[422390295,1778919626000,-350.0,0.00045205,30]
[422390298,1778919626000,-2500.0,0.000453,120]
[422390303,1778919626000,-273.95,0.000454,120]
[422390302,1778919626000,-171.0,0.0004538,120]
[422390305,1778919626000,-200.64717057,0.00045411,30]
[422390314,1778919626000,-186179.8397895,0.000455,120]
[422390312,1778919626000,-80000.0,0.000455,110]
[422390313,1778919626000,-80000.0,0.000455,115]
[422390311,1778919626000,-10000.0,0.000455,120]
[422390304,1778919626000,-300.98575584,0.00045411,120]
[422390309,1778919626000,-50000.0,0.000455,120]
[422390308,1778919626000,-50000.0,0.000455,32]
[422390306,1778919626000,-601.94645934,0.00045421,120]
[422390307,1778919626000,-2335.0,0.00045457,120]
[422390310,1778919626000,-1500.0,0.000455,120]
[422390323,1778919627000,-1926.63,0.0004558,120]
[422390315,1778919627000,-2042.54,0.000455,120]
[422390316,1778919627000,-211.0,0.000455,120]
[422390317,1778919627000,-1966.86114439,0.00045533,120]
[422390319,1778919627000,-366.82991459,0.00045556,30]
[422390318,1778919627000,-6039.91540743,0.00045556,120]
[422390320,1778919627000,-6276.85,0.0004558,30]
[422390322,1778919627000,-10501.69,0.0004558,30]
[422390321,1778919627000,-400.0,0.0004558,30]
[422390324,1778919627000,-421.0,0.00045594,90]
[422390325,1778919627000,-2500.0,0.000456,120]
[422390326,1778919627000,-490833.00280967,0.000456,35]
[422390327,1778919627000,-250855.69484321,0.000456,35]
[422390328,1778919627000,-272690.42773421,0.000456,35]
[422390330,1778919627000,-1637.75974432,0.000456,120]
[422390329,1778919627000,-100000.0,0.000456,35]
[422390331,1778919627000,-50666.96941255,0.000456,35]
[422390333,1778919627000,-100000.0,0.000457,120]
[422390332,1778919627000,-907.8,0.000456,120]
[422390334,1778919627000,-167.15045357,0.000457,120]
[422390335,1778919627000,-97170.025508,0.000458,120]
[422390336,1778919627000,-300000.0,0.000458,120]
[422390346,1778919628000,-211.0,0.000459,120]
[422390344,1778919628000,-50000.0,0.000459,120]
[422390343,1778919628000,-2500.0,0.000459,120]
[422390342,1778919628000,-1000.0,0.0004589,30]
[422390337,1778919628000,-152.0,0.000458,120]
[422390340,1778919628000,-273.95,0.0004588,120]
[422390339,1778919628000,-29260.95111853,0.0004588,120]
[422390338,1778919628000,-10000.0,0.0004588,120]
[422390345,1778919628000,-151.8,0.000459,120]
[422390341,1778919628000,-7714.83354967,0.00045889,120]
[422390347,1778919628000,-1000.0,0.00045999,120]
[422390359,1778919628000,-185.9023457,0.00046,120]
[422390348,1778919628000,-500.0,0.00046,120]
[422390349,1778919628000,-4950.0,0.00046,120]
[422390357,1778919628000,-685.32647416,0.00046,120]
[422390358,1778919628000,-340.0,0.00046,30]
[422390356,1778919628000,-183.97981587,0.00046,120]
[422390355,1778919628000,-3416.24934444,0.00046,30]
[422390360,1778919628000,-1399.25300965,0.00046,120]
[422390353,1778919628000,-1000.0,0.00046,120]
[422390354,1778919628000,-10000.0,0.00046,120]
[422390351,1778919628000,-50000.0,0.00046,30]
[422390350,1778919628000,-1000.0,0.00046,120]
[422390352,1778919628000,-1000.0,0.00046,60]
[422390361,1778919629000,-20000.0,0.00046,120]
[422390363,1778919629000,-208.94177403,0.00046,30]
[422390370,1778919629000,-1390.12406722,0.00046,120]
[422390364,1778919629000,-460.03346934,0.00046,120]
[422390366,1778919629000,-3034.34455044,0.00046,120]
[422390365,1778919629000,-297.88288378,0.00046,120]
[422390367,1778919629000,-1266.68035962,0.00046,120]
[422390368,1778919629000,-423.12488063,0.00046,60]
[422390369,1778919629000,-18555.0,0.00046,120]
[422390371,1778919629000,-23158.31987156,0.00046,60]
[422390362,1778919629000,-1000.0,0.00046,30]
[422390374,1778919629000,-3249.83593664,0.00046,120]
[422390372,1778919629000,-156.49324108,0.00046,120]
[422390380,1778919629000,-5246.0,0.0004605,120]
[422390382,1778919629000,-888.0,0.0004605,120]
[422390381,1778919629000,-5501.0,0.0004605,120]
[422390379,1778919629000,-557.0,0.0004605,120]
[422390373,1778919629000,-489.37764654,0.00046,120]
[422390377,1778919629000,-567.0,0.00046033,120]
[422390376,1778919629000,-1450.0,0.00046,120]
[422390375,1778919629000,-859.69485985,0.00046,120]
[422390378,1778919629000,-210.0,0.0004605,120]
[422390384,1778919630000,-2311.0,0.0004605,120]
[422390383,1778919630000,-989.0,0.0004605,120]
[422390385,1778919630000,-1185.0,0.0004605,120]
[422390386,1778919630000,-953.0,0.0004605,120]
[422390387,1778919630000,-530.0,0.0004605,120]
[422390388,1778919630000,-1821.0,0.00046058,120]
[422390389,1778919630000,-340.0,0.00046058,120]
[422390390,1778919630000,-339.19710682,0.000461,120]
[422390392,1778919630000,-247.07951067,0.000462,30]
[422390393,1778919630000,-160.0,0.000462,79]
[422390391,1778919630000,-2500.0,0.000462,120]
[422390395,1778919630000,-225.83777085,0.00046222,120]
[422390404,1778919630000,-859.29170465,0.000465,120]
[422390394,1778919630000,-225.83777085,0.00046222,120]
[422390403,1778919630000,-10000.0,0.000465,120]
[422390402,1778919630000,-1500.0,0.000465,120]
[422390401,1778919630000,-2500.0,0.000465,120]
[422390405,1778919630000,-866.59,0.000465,120]
[422390398,1778919630000,-500.0,0.00046301,120]
[422390400,1778919630000,-393.63478639,0.00046499,120]
[422390397,1778919630000,-3651.14326479,0.00046225,120]
[422390396,1778919630000,-213.36350281,0.00046222,120]
[422390399,1778919630000,-211.0,0.000464,120]
[422390414,1778919631000,-524.40294489,0.00046575,30]
[422390406,1778919631000,-1700.0,0.00046531,120]
[422390407,1778919631000,-150.99,0.00046552,30]
[422390408,1778919631000,-1138.17274861,0.0004657,30]
[422390409,1778919631000,-150.0,0.00046574,30]
[422390410,1778919631000,-239.0,0.00046575,120]
[422390411,1778919631000,-500.0,0.00046575,30]
[422390412,1778919631000,-500.0,0.00046575,30]
[422390413,1778919631000,-500.0,0.00046575,30]
[422390416,1778919631000,-200.0,0.00046575,30]
[422390415,1778919631000,-200.0,0.00046575,30]
[422390426,1778919631000,-168.82441293,0.00046575,30]
[422390427,1778919631000,-151.0,0.00046575,30]
[422390425,1778919631000,-200.0,0.00046575,30]
[422390424,1778919631000,-200.0,0.00046575,30]
[422390423,1778919631000,-200.0,0.00046575,30]
[422390417,1778919631000,-200.0,0.00046575,30]
[422390421,1778919631000,-200.0,0.00046575,30]
[422390419,1778919631000,-200.0,0.00046575,30]
[422390418,1778919631000,-200.0,0.00046575,30]
[422390420,1778919631000,-200.0,0.00046575,30]
[422390422,1778919631000,-200.0,0.00046575,30]
[422390435,1778919632000,-200.0,0.00046575,30]
[422390428,1778919632000,-299.33286419,0.00046575,30]
[422390429,1778919632000,-200.0,0.00046575,120]
[422390430,1778919632000,-308.0,0.00046575,120]
[422390431,1778919632000,-200.0,0.00046575,30]
[422390432,1778919632000,-200.0,0.00046575,30]
[422390433,1778919632000,-500.0,0.00046575,30]
[422390434,1778919632000,-200.0,0.00046575,30]
[422390437,1778919632000,-200.0,0.00046575,30]
[422390438,1778919632000,-151.0,0.00046575,30]
[422390439,1778919632000,-1500.0,0.00046575,30]
[422390440,1778919632000,-500.0,0.00046575,30]
[422390441,1778919632000,-151.0,0.00046575,30]
[422390442,1778919632000,-1555.5,0.00046575,30]
[422390443,1778919632000,-189.28286745,0.00046575,30]
[422390444,1778919632000,-500.0,0.00046575,30]
[422390445,1778919632000,-151.0,0.00046575,30]
[422390436,1778919632000,-500.0,0.00046575,30]
[422390451,1778919633000,-500.0,0.00046575,30]
[422390453,1778919633000,-1734.62772924,0.00046575,30]
[422390454,1778919633000,-152.0,0.00046575,30]
[422390452,1778919633000,-151.0,0.00046575,30]
[422390456,1778919633000,-151.0,0.00046575,30]
[422390450,1778919633000,-152.0,0.00046575,30]
[422390449,1778919633000,-1672.7364795,0.00046575,30]
[422390446,1778919633000,-1613.0535,0.00046575,30]
[422390447,1778919633000,-500.0,0.00046575,30]
[422390448,1778919633000,-151.0,0.00046575,30]
[422390455,1778919633000,-500.0,0.00046575,30]
[422390465,1778919633000,-151.0,0.00046575,30]
[422390458,1778919633000,-1798.80895522,0.00046575,30]
[422390459,1778919633000,-500.0,0.00046575,30]
[422390461,1778919633000,-152.0,0.00046575,30]
[422390460,1778919633000,-151.0,0.00046575,30]
[422390462,1778919633000,-1865.36488657,0.00046575,30]
[422390463,1778919633000,-727.50521855,0.00046575,30]
[422390464,1778919633000,-500.0,0.00046575,30]
[422390469,1778919633000,-151.0,0.00046575,30]
[422390466,1778919633000,-152.0,0.00046575,30]
[422390467,1778919633000,-1934.38338737,0.00046575,30]
[422390468,1778919633000,-500.0,0.00046575,30]
[422390457,1778919633000,-152.0,0.00046575,30]
[422390479,1778919634000,-2157.14243826,0.00046575,30]
[422390477,1778919634000,-151.0,0.00046575,30]
[422390478,1778919634000,-152.0,0.00046575,30]
[422390475,1778919634000,-2080.17592889,0.00046575,30]
[422390470,1778919634000,-152.0,0.00046575,30]
[422390472,1778919634000,-500.0,0.00046575,30]
[422390473,1778919634000,-151.0,0.00046575,30]
[422390471,1778919634000,-2005.9555727,0.00046575,30]
[422390481,1778919634000,-151.0,0.00046575,30]
[422390476,1778919634000,-500.0,0.00046575,30]
[422390480,1778919634000,-500.0,0.00046575,30]
[422390474,1778919634000,-152.0,0.00046575,30]
[422390482,1778919634000,-152.0,0.00046575,30]
[422390485,1778919634000,-500.0,0.00046575,30]
[422390484,1778919634000,-151.0,0.00046575,30]
[422390486,1778919634000,-151.0,0.00046575,30]
[422390488,1778919634000,-153.04293607,0.00046575,30]
[422390487,1778919634000,-152.0,0.00046575,30]
[422390490,1778919634000,-151.0,0.00046575,30]
[422390489,1778919634000,-500.0,0.00046575,30]
[422390491,1778919634000,-152.0,0.00046575,30]
[422390493,1778919634000,-151.0,0.00046575,30]
[422390492,1778919634000,-500.0,0.00046575,30]
[422390483,1778919634000,-1262.12892881,0.00046575,30]
[422390501,1778919635000,-152.0,0.00046575,30]
[422390502,1778919635000,-151.0,0.00046575,30]
[422390499,1778919635000,-151.0,0.00046575,30]
[422390500,1778919635000,-500.0,0.00046575,30]
[422390494,1778919635000,-500.0,0.00046575,30]
[422390497,1778919635000,-500.0,0.00046575,30]
[422390498,1778919635000,-152.0,0.00046575,30]
[422390495,1778919635000,-152.0,0.00046575,30]
[422390503,1778919635000,-500.0,0.00046575,30]
[422390496,1778919635000,-151.0,0.00046575,30]
[422390504,1778919635000,-152.0,0.00046575,30]
[422390509,1778919635000,-152.0,0.00046575,30]
[422390507,1778919635000,-151.0,0.00046575,30]
[422390508,1778919635000,-152.0,0.00046575,30]
[422390506,1778919635000,-152.0,0.00046575,30]
[422390510,1778919635000,-152.0,0.00046575,30]
[422390512,1778919635000,-1847.0,0.00046575,120]
[422390511,1778919635000,-152.0,0.00046575,30]
[422390513,1778919635000,-5000.01,0.00046575,30]
[422390514,1778919635000,-151.0,0.00046575,120]
[422390515,1778919635000,-151.0,0.00046575,120]
[422390517,1778919635000,-151.0,0.00046575,120]
[422390516,1778919635000,-151.0,0.00046575,120]
[422390505,1778919635000,-151.0,0.00046575,30]
[422390519,1778919636000,-151.0,0.00046575,120]
[422390520,1778919636000,-178.20473,0.00046575,120]
[422390518,1778919636000,-151.0,0.00046575,120]
[422390523,1778919636000,12939.56,0.00045575,30]
[422390521,1778919636000,-8433.14371125,0.00046575,30]
[422390522,1778919636000,-272.0,0.00046575,30]
[422390525,1778919637000,5947.89746438,0.00046575,30]
[422390524,1778919637000,66449.4945086,0.00046575,30]
[422390526,1778919637000,19562.8648202,0.00046575,30]
[422390529,1778919637000,325.93186459,0.0004,30]
[422390527,1778919637000,567.0,0.00034516,30]
[422390530,1778919637000,567.0,0.00035516,30]
[422390531,1778919637000,325.93186459,0.0004,60]
[422390532,1778919637000,567.0,0.00036516,30]
[422390533,1778919637000,166.39593959,0.00046529,30]
[422390534,1778919637000,290.82,0.00029322,30]
[422390528,1778919637000,325.93186459,0.0004,30]
[422390536,1778919749000,196.31,0.00015,120]
[422390542,1778919939000,176.68,0.00015,120]
[422390551,1778920104000,-160.38,0.00010435,2]
[422390550,1778920104000,-737.7,0.00010216,2]
[422390552,1778920120000,-208.44072055,0.00010571,2]
[422390555,1778920128000,159.01,0.00015,120]
[422390556,1778920161000,-529.25927945,0.00010571,2]
[422390581,1778920233000,-300.0,0.00013399,2]
[422390578,1778920233000,-944.66829841,0.00013189,2]
[422390579,1778920233000,-164.23,0.0001319,2]
[422390582,1778920233000,-300.0,0.00013399,2]
[422390583,1778920233000,-300.0,0.00013399,2]
[422390588,1778920233000,-2312.0,0.000134,2]
[422390584,1778920233000,-1024.04735028,0.000134,2]
[422390585,1778920233000,-560.95264972,0.000134,2]
[422390587,1778920233000,-2312.0,0.000134,2]
[422390589,1778920233000,-737.7,0.00013411,2]
[422390591,1778920233000,-150.0,0.00013698,2]
[422390590,1778920233000,-150.0,0.00013488,2]
[422390595,1778920233000,-6842.46514416,0.00013699,2]
[422390592,1778920233000,-4999.99,0.00013699,2]
[422390580,1778920233000,-167.47,0.00013276,2]
[422390586,1778920233000,-2312.0,0.000134,2]
[422390577,1778920233000,-255.33170159,0.00013189,2]
[422390567,1778920233000,-705.15919053,0.00011991,2]
[422390576,1778920233000,-737.7,0.00013056,2]
[422390560,1778920233000,-105.45535574,0.00010926,2]
[422390561,1778920233000,-632.24464426,0.00010926,2]
[422390559,1778920233000,-208.44072055,0.0001062,2]
[422390563,1778920233000,-341.28553195,0.00011636,2]
[422390562,1778920233000,-737.7,0.00011281,2]
[422390565,1778920233000,-11.41153549,0.00011636,2]
[422390564,1778920233000,-385.00293256,0.00011636,2]
[422390575,1778920233000,-430.56,0.00012948,2]
[422390598,1778920233000,-999.99,0.00013699,2]
[422390568,1778920233000,-32.54080947,0.00011991,2]
[422390569,1778920233000,-384.97102029,0.00012346,2]
[422390571,1778920233000,-500.0,0.00012677,2]
[422390572,1778920233000,-118.99255616,0.00012701,2]
[422390570,1778920233000,-352.72897971,0.00012346,2]
[422390573,1778920233000,-618.70744384,0.00012701,2]
[422390574,1778920233000,-448.28,0.00012883,2]
[422390566,1778920233000,-500.0,0.00011675,2]
[422390594,1778920233000,-700.37599953,0.00013699,2]
[422390596,1778920233000,-1215.54,0.00013699,2]
[422390625,1778920233000,-2000.0,0.00014382,2]
[422390620,1778920233000,-1619.0,0.0001436,2]
[422390619,1778920233000,-152.0,0.00014338,7]
[422390622,1778920233000,-2312.0,0.0001436,2]
[422390623,1778920233000,-2312.0,0.0001436,2]
[422390631,1778920233000,-429.43968428,0.00014404,2]
[422390630,1778920233000,-1800.0,0.000144,5]
[422390593,1778920233000,-2457.14885631,0.00013699,2]
[422390615,1778920233000,-600.0,0.000142,5]
[422390628,1778920233000,-2500.0,0.00014382,2]
[422390627,1778920233000,-28759.1385,0.00014382,2]
[422390624,1778920233000,-23643.1156,0.00014382,2]
[422390632,1778920233000,-7771.75205426,0.00014404,2]
[422390629,1778920233000,-8784.4861,0.000144,2]
[422390633,1778920233000,-429.43968423,0.00014459,2]
[422390634,1778920233000,-7771.75205421,0.00014459,2]
[422390635,1778920233000,-500.0,0.00014481,2]
[422390626,1778920233000,-3668.9793,0.00014382,2]
[422390621,1778920233000,-2312.0,0.0001436,2]
[422390616,1778920233000,-23180.8157,0.000143,2]
[422390617,1778920233000,-1200.0,0.000143,5]
[422390597,1778920233000,-299.99,0.00013699,2]
[422390599,1778920233000,-2049.87674168,0.00013699,2]
[422390600,1778920233000,-303.8818997,0.00013699,2]
[422390602,1778920233000,-499.99,0.00013699,2]
[422390601,1778920233000,-7646.23135862,0.00013699,2]
[422390618,1778920233000,-2312.0,0.0001432,2]
[422390605,1778920233000,-9999.99,0.00013699,2]
[422390609,1778920233000,-737.7,0.00013766,2]
[422390604,1778920233000,-150.99,0.00013699,2]
[422390603,1778920233000,-9999.99,0.00013699,2]
[422390606,1778920233000,-166.69,0.00013699,2]
[422390607,1778920233000,-1585.0,0.0001372,2]
[422390610,1778920233000,-250.0,0.00014,2]
[422390612,1778920233000,-2312.0,0.0001404,2]